[Event "Late-Titled-Tuesday-Blitz-May-07-2024"]
[Site "Chess.com"]
[Date "2024.05.07"]
[Round "2"]
[White "finec2"]
[Black "Rital44"]
[Result "1/2-1/2"]
[WhiteElo "2292"]
[BlackElo "2713"]
[TimeControl "180+1"]
[EndTime "14:20:49 PDT"]
[Termination "Game drawn - insufficient material"]

1. e4 {[%clk 0:02:59.6]} 1... e6 {[%clk 0:02:58.7]} 2. d4 {[%clk 0:02:59.5]}
2... d5 {[%clk 0:02:59.2]} 3. e5 {[%clk 0:03:00.2]} 3... c5 {[%clk 0:02:59.3]}
4. c3 {[%clk 0:03:00.8]} 4... Nc6 {[%clk 0:02:59.9]} 5. Nf3 {[%clk 0:03:01.4]}
5... Nh6 {[%clk 0:03:00.1]} 6. Bd3 {[%clk 0:03:01.3]} 6... Nf5 {[%clk
0:02:59.3]} 7. O-O {[%clk 0:02:58.3]} 7... b6 {[%clk 0:02:54.3]} 8. Bg5 {[%clk
0:02:50.1]} 8... Be7 {[%clk 0:02:52.7]} 9. Bxe7 {[%clk 0:02:49.5]} 9... Qxe7
{[%clk 0:02:51.3]} 10. a3 {[%clk 0:02:43.2]} 10... g6 {[%clk 0:02:48.9]} 11. Bb5
{[%clk 0:02:30.5]} 11... Bd7 {[%clk 0:02:47.3]} 12. b4 {[%clk 0:02:30.1]} 12...
cxd4 {[%clk 0:02:38.5]} 13. cxd4 {[%clk 0:02:29.4]} 13... Nxe5 {[%clk
0:02:36.6]} 14. Nxe5 {[%clk 0:02:26.5]} 14... Bxb5 {[%clk 0:02:36.3]} 15. Re1
{[%clk 0:02:25.2]} 15... O-O {[%clk 0:02:36.1]} 16. Nc3 {[%clk 0:02:24.3]} 16...
Be8 {[%clk 0:02:32.5]} 17. Qd3 {[%clk 0:02:09.5]} 17... Qf6 {[%clk 0:02:24.2]}
18. Rad1 {[%clk 0:02:05.2]} 18... Rc8 {[%clk 0:02:22.8]} 19. f4 {[%clk
0:01:52.6]} 19... Nd6 {[%clk 0:02:22.5]} 20. g3 {[%clk 0:01:51.9]} 20... Nc4
{[%clk 0:02:22.3]} 21. Ra1 {[%clk 0:01:36.4]} 21... a5 {[%clk 0:02:17.5]} 22. b5
{[%clk 0:01:32.3]} 22... Rc7 {[%clk 0:02:14.7]} 23. a4 {[%clk 0:01:29.1]} 23...
Bd7 {[%clk 0:02:14.4]} 24. Re2 {[%clk 0:01:15.8]} 24... Rfc8 {[%clk 0:02:14.2]}
25. Rc1 {[%clk 0:01:13.4]} 25... Be8 {[%clk 0:02:12.7]} 26. Kg2 {[%clk
0:00:47.2]} 26... h5 {[%clk 0:02:10.9]} 27. h3 {[%clk 0:00:46.5]} 27... Kg7
{[%clk 0:02:10.6]} 28. Nf3 {[%clk 0:00:40.4]} 28... Nd6 {[%clk 0:02:07.2]} 29.
Ne5 {[%clk 0:00:35.9]} 29... Nf5 {[%clk 0:02:06.8]} 30. g4 {[%clk 0:00:28.4]}
30... Nh4+ {[%clk 0:01:47.2]} 31. Kg3 {[%clk 0:00:28.2]} 31... Rc4 {[%clk
0:01:45.1]} 32. Nxc4 {[%clk 0:00:22.4]} 32... Rxc4 {[%clk 0:01:46]} 33. Rd1
{[%clk 0:00:16.4]} 33... Bd7 {[%clk 0:01:44.8]} 34. Qe3 {[%clk 0:00:10.3]} 34...
Kg8 {[%clk 0:01:30.8]} 35. Rd3 {[%clk 0:00:10.4]} 35... Rb4 {[%clk 0:01:29.1]}
36. Qe5 {[%clk 0:00:10.2]} 36... Qd8 {[%clk 0:01:23.1]} 37. Qd6 {[%clk
0:00:07.2]} 37... Rc4 {[%clk 0:01:23.3]} 38. Nxd5 {[%clk 0:00:04.6]} 38... hxg4
{[%clk 0:01:19.3]} 39. hxg4 {[%clk 0:00:04.4]} 39... exd5 {[%clk 0:01:06.5]} 40.
Re7 {[%clk 0:00:04.1]} 40... Rc1 {[%clk 0:01:04.1]} 41. Qxd7 {[%clk 0:00:03.3]}
41... Qxd7 {[%clk 0:00:52.6]} 42. Rxd7 {[%clk 0:00:04.2]} 42... g5 {[%clk
0:00:52.9]} 43. Rxd5 {[%clk 0:00:03.9]} 43... Rg1+ {[%clk 0:00:52]} 44. Kf2
{[%clk 0:00:03.8]} 44... Rg2+ {[%clk 0:00:52.6]} 45. Kf1 {[%clk 0:00:04.1]}
45... gxf4 {[%clk 0:00:51.3]} 46. Rg5+ {[%clk 0:00:04.4]} 46... Kf8 {[%clk
0:00:50.4]} 47. d5 {[%clk 0:00:05.3]} 47... Rc2 {[%clk 0:00:44.9]} 48. d6 {[%clk
0:00:05.6]} 48... Rc8 {[%clk 0:00:43.3]} 49. d7 {[%clk 0:00:06.1]} 49... Rd8
{[%clk 0:00:43.6]} 50. Rgd5 {[%clk 0:00:06.6]} 50... Ng6 {[%clk 0:00:43.5]} 51.
Rc3 {[%clk 0:00:06.5]} 51... Ne7 {[%clk 0:00:43]} 52. Rd6 {[%clk 0:00:06.5]}
52... Ng6 {[%clk 0:00:40.7]} 53. Rc7 {[%clk 0:00:06.7]} 53... Ke7 {[%clk
0:00:40.3]} 54. Rxb6 {[%clk 0:00:07.1]} 54... Ne5 {[%clk 0:00:40.6]} 55. Rcb7
{[%clk 0:00:06.1]} 55... Nxg4 {[%clk 0:00:40.1]} 56. Ra6 {[%clk 0:00:06.6]}
56... Ne3+ {[%clk 0:00:40.3]} 57. Ke2 {[%clk 0:00:06.9]} 57... Nc4 {[%clk
0:00:40.5]} 58. Rc6 {[%clk 0:00:05.9]} 58... Ne5 {[%clk 0:00:38.6]} 59. Rc8
{[%clk 0:00:06.1]} 59... Rxd7 {[%clk 0:00:36.2]} 60. Rxd7+ {[%clk 0:00:05.8]}
60... Kxd7 {[%clk 0:00:35.2]} 61. Ra8 {[%clk 0:00:06.3]} 61... Kc7 {[%clk
0:00:35.6]} 62. Rxa5 {[%clk 0:00:06.3]} 62... f3+ {[%clk 0:00:30.9]} 63. Kf2
{[%clk 0:00:05.9]} 63... Kb7 {[%clk 0:00:27.6]} 64. Ra6 {[%clk 0:00:06.8]} 64...
Nd3+ {[%clk 0:00:28.3]} 65. Kxf3 {[%clk 0:00:06.6]} 65... Nc5 {[%clk 0:00:29.2]}
66. Rf6 {[%clk 0:00:04.9]} 66... Nxa4 {[%clk 0:00:29.3]} 67. Rxf7+ {[%clk
0:00:05.4]} 67... Kb6 {[%clk 0:00:30.2]} 68. Rf5 {[%clk 0:00:05.6]} 68... Nc3
{[%clk 0:00:29.9]} 69. Ke3 {[%clk 0:00:05.3]} 69... Nd1+ {[%clk 0:00:30]} 70.
Kd2 {[%clk 0:00:05.2]} 70... Nb2 {[%clk 0:00:30.5]} 71. Kc3 {[%clk 0:00:05.6]}
71... Nd1+ {[%clk 0:00:30.1]} 72. Kd3 {[%clk 0:00:05.5]} 72... Nb2+ {[%clk
0:00:29.9]} 73. Kd4 {[%clk 0:00:05.4]} 73... Na4 {[%clk 0:00:29.7]} 74. Kc4
{[%clk 0:00:05.5]} 74... Nb2+ {[%clk 0:00:30.1]} 75. Kb3 {[%clk 0:00:05.9]}
75... Nd3 {[%clk 0:00:30]} 76. Rh5 {[%clk 0:00:04.6]} 76... Nf4 {[%clk
0:00:28.7]} 77. Re5 {[%clk 0:00:04.3]} 77... Nd3 {[%clk 0:00:28.5]} 78. Rd5
{[%clk 0:00:04.2]} 78... Nf4 {[%clk 0:00:28.6]} 79. Rd4 {[%clk 0:00:04.6]} 79...
Ne2 {[%clk 0:00:27.6]} 80. Re4 {[%clk 0:00:05.1]} 80... Ng3 {[%clk 0:00:26.5]}
81. Re5 {[%clk 0:00:05.4]} 81... Nh1 {[%clk 0:00:25.3]} 82. Kc3 {[%clk
0:00:05.8]} 82... Nf2 {[%clk 0:00:25.8]} 83. Kd2 {[%clk 0:00:05.8]} 83... Ng4
{[%clk 0:00:26]} 84. Rg5 {[%clk 0:00:05.6]} 84... Nf2 {[%clk 0:00:25.1]} 85. Ke3
{[%clk 0:00:05.2]} 85... Nd1+ {[%clk 0:00:25.5]} 86. Kd4 {[%clk 0:00:05.3]}
86... Nb2 {[%clk 0:00:25.2]} 87. Kc3 {[%clk 0:00:04.7]} 87... Na4+ {[%clk
0:00:26.1]} 88. Kb4 {[%clk 0:00:04.7]} 88... Nb2 {[%clk 0:00:26.8]} 89. Rg2
{[%clk 0:00:04.3]} 89... Nd3+ {[%clk 0:00:25.7]} 90. Kc3 {[%clk 0:00:04.9]}
90... Nf4 {[%clk 0:00:26]} 91. Rg5 {[%clk 0:00:04.1]} 91... Ka5 {[%clk
0:00:19.5]} 92. Kd4 {[%clk 0:00:01.4]} 92... Ne2+ {[%clk 0:00:19.7]} 93. Kc5
{[%clk 0:00:01.4]} 93... Nc1 {[%clk 0:00:20.6]} 94. Rg8 {[%clk 0:00:01.1]} 94...
Nb3+ {[%clk 0:00:21.5]} 95. Kc6 {[%clk 0:00:01.3]} 95... Kb4 {[%clk 0:00:21.6]}
96. Ra8 {[%clk 0:00:01.6]} 96... Na5+ {[%clk 0:00:22.5]} 97. Kb6 {[%clk
0:00:01.6]} 97... Nc4+ {[%clk 0:00:22.5]} 98. Kc6 {[%clk 0:00:02.4]} 98... Ne5+
{[%clk 0:00:22.8]} 99. Kd5 {[%clk 0:00:02.5]} 99... Nd7 {[%clk 0:00:22.3]} 100.
Rd8 {[%clk 0:00:02.6]} 100... Nb6+ {[%clk 0:00:22.6]} 101. Kc6 {[%clk
0:00:01.7]} 101... Ka5 {[%clk 0:00:23.5]} 102. Rb8 {[%clk 0:00:01.5]} 102... Nc4
{[%clk 0:00:23]} 103. b6 {[%clk 0:00:02]} 103... Ne5+ {[%clk 0:00:23.8]} 104.
Kc5 {[%clk 0:00:02.2]} 104... Nd7+ {[%clk 0:00:24.1]} 105. Kc6 {[%clk
0:00:02.8]} 105... Nxb8+ {[%clk 0:00:25]} 106. Kb7 {[%clk 0:00:02.5]} 106... Nd7
{[%clk 0:00:24.7]} 107. Kc7 {[%clk 0:00:03.2]} 107... Nc5 {[%clk 0:00:25.6]}
108. Kc6 {[%clk 0:00:03.6]} 108... Na6 {[%clk 0:00:26.5]} 109. Kb7 {[%clk
0:00:04]} 109... Kb5 {[%clk 0:00:26.6]} 110. Kc8 {[%clk 0:00:03.7]} 110... Kxb6
{[%clk 0:00:23.7]} 1/2-1/2

[Event "Late-Titled-Tuesday-Blitz-May-07-2024"]
[Site "Chess.com"]
[Date "2024.05.07"]
[Round "3"]
[White "Ykow"]
[Black "Felix-Rose"]
[Result "0-1"]
[WhiteElo "2537"]
[BlackElo "2234"]
[TimeControl "180+1"]
[EndTime "14:23:32 PDT"]
[Termination "Felix-Rose won by resignation"]

1. e4 {[%clk 0:03:00.9]} 1... e5 {[%clk 0:02:58.5]} 2. Nf3 {[%clk 0:03:00.3]}
2... Nc6 {[%clk 0:02:55.9]} 3. Bc4 {[%clk 0:03:00.3]} 3... Nf6 {[%clk
0:02:55.8]} 4. d3 {[%clk 0:02:59.6]} 4... Bc5 {[%clk 0:02:55.7]} 5. h3 {[%clk
0:03:00.5]} 5... d6 {[%clk 0:02:54.7]} 6. Nc3 {[%clk 0:03:00.2]} 6... h6 {[%clk
0:02:54.2]} 7. a3 {[%clk 0:03:00.1]} 7... a5 {[%clk 0:02:54]} 8. Be3 {[%clk
0:02:57.7]} 8... O-O {[%clk 0:02:51]} 9. g4 {[%clk 0:02:56.8]} 9... Nd4 {[%clk
0:02:44.9]} 10. Bxd4 {[%clk 0:02:56.2]} 10... exd4 {[%clk 0:02:41]} 11. Nd5
{[%clk 0:02:56.5]} 11... Nxd5 {[%clk 0:02:39.6]} 12. Bxd5 {[%clk 0:02:57.4]}
12... c6 {[%clk 0:02:39.8]} 13. Ba2 {[%clk 0:02:57.7]} 13... d5 {[%clk
0:02:39.2]} 14. e5 {[%clk 0:02:57.1]} 14... Re8 {[%clk 0:02:34.6]} 15. Qd2
{[%clk 0:02:53.4]} 15... f6 {[%clk 0:02:31.9]} 16. O-O-O {[%clk 0:02:52.6]}
16... fxe5 {[%clk 0:02:31.3]} 17. Rde1 {[%clk 0:02:53.5]} 17... Qf6 {[%clk
0:02:27.6]} 18. Nh2 {[%clk 0:02:49.6]} 18... Bd7 {[%clk 0:02:25.6]} 19. Rhg1
{[%clk 0:02:46.8]} 19... Qf4 {[%clk 0:02:18.7]} 20. Qxf4 {[%clk 0:02:46.7]}
20... exf4 {[%clk 0:02:19.6]} 21. Nf3 {[%clk 0:02:46.1]} 21... Rxe1+ {[%clk
0:02:08.2]} 22. Rxe1 {[%clk 0:02:45.6]} 22... Re8 {[%clk 0:02:07.2]} 23. Rxe8+
{[%clk 0:02:37.6]} 23... Bxe8 {[%clk 0:02:08.1]} 0-1

[Event "Late-Titled-Tuesday-Blitz-May-07-2024"]
[Site "Chess.com"]
[Date "2024.05.07"]
[Round "3"]
[White "Cuchulin"]
[Black "gabduschew"]
[Result "0-1"]
[WhiteElo "2194"]
[BlackElo "2437"]
[TimeControl "180+1"]
[EndTime "14:23:44 PDT"]
[Termination "gabduschew won by resignation"]

1. d4 {[%clk 0:03:00.9]} 1... d5 {[%clk 0:02:57.1]} 2. Bf4 {[%clk 0:03:00.9]}
2... Nf6 {[%clk 0:02:56.5]} 3. e3 {[%clk 0:03:01.3]} 3... c5 {[%clk 0:02:56.8]}
4. Nc3 {[%clk 0:03:00.8]} 4... cxd4 {[%clk 0:02:48.7]} 5. exd4 {[%clk
0:03:00.5]} 5... a6 {[%clk 0:02:39.1]} 6. Nf3 {[%clk 0:03:00.4]} 6... Bg4 {[%clk
0:02:37.7]} 7. Be2 {[%clk 0:03:00.2]} 7... Nc6 {[%clk 0:02:37.3]} 8. O-O {[%clk
0:02:59.4]} 8... e6 {[%clk 0:02:37]} 9. Na4 {[%clk 0:02:51.3]} 9... Bd6 {[%clk
0:02:33.7]} 10. Bxd6 {[%clk 0:02:49.7]} 10... Qxd6 {[%clk 0:02:34.3]} 11. Nc5
{[%clk 0:02:49]} 11... b6 {[%clk 0:02:29.9]} 12. Nxa6 {[%clk 0:02:46]} 12...
Bxf3 {[%clk 0:02:22.1]} 13. gxf3 {[%clk 0:02:45.4]} 13... Nh5 {[%clk 0:02:16.6]}
14. Bb5 {[%clk 0:02:32.7]} 14... O-O {[%clk 0:02:13.5]} 15. Bxc6 {[%clk
0:02:23.8]} 15... Qxc6 {[%clk 0:02:14.4]} 16. Nb4 {[%clk 0:02:23.5]} 16... Qd6
{[%clk 0:02:12.9]} 17. Qd2 {[%clk 0:02:19.9]} 17... Nf4 {[%clk 0:02:10.5]} 18.
c3 {[%clk 0:02:19]} 18... e5 {[%clk 0:02:06.5]} 19. dxe5 {[%clk 0:02:15.1]}
19... Qg6+ {[%clk 0:02:05.1]} 0-1

[Event "Late-Titled-Tuesday-Blitz-May-07-2024"]
[Site "Chess.com"]
[Date "2024.05.07"]
[Round "3"]
[White "oskariot"]
[Black "DrVelja"]
[Result "0-1"]
[WhiteElo "2754"]
[BlackElo "2992"]
[TimeControl "180+1"]
[EndTime "14:24:08 PDT"]
[Termination "DrVelja won by resignation"]

1. e4 {[%clk 0:03:00.9]} 1... c5 {[%clk 0:03:00]} 2. Nf3 {[%clk 0:03:00.8]} 2...
Nc6 {[%clk 0:03:00.5]} 3. b4 {[%clk 0:03:00.9]} 3... Nxb4 {[%clk 0:02:58.9]} 4.
c3 {[%clk 0:03:01.1]} 4... Nc6 {[%clk 0:02:59.6]} 5. d4 {[%clk 0:03:01.9]} 5...
cxd4 {[%clk 0:03:00.5]} 6. cxd4 {[%clk 0:03:02.8]} 6... e6 {[%clk 0:03:01.4]} 7.
Nc3 {[%clk 0:03:02.4]} 7... d5 {[%clk 0:03:00.7]} 8. e5 {[%clk 0:03:01.8]} 8...
Bb4 {[%clk 0:03:01.3]} 9. Bd2 {[%clk 0:03:02]} 9... Nge7 {[%clk 0:03:01.8]} 10.
Bd3 {[%clk 0:03:01.7]} 10... h6 {[%clk 0:03:01.4]} 11. O-O {[%clk 0:03:01.3]}
11... O-O {[%clk 0:03:02]} 12. Rc1 {[%clk 0:02:57.5]} 12... Nf5 {[%clk
0:03:01.6]} 13. Ne2 {[%clk 0:02:48.6]} 13... Bxd2 {[%clk 0:02:49.1]} 14. Qxd2
{[%clk 0:02:49.5]} 14... Bd7 {[%clk 0:02:49]} 15. g4 {[%clk 0:02:37.7]} 15...
Nh4 {[%clk 0:02:47]} 16. Nxh4 {[%clk 0:02:25.4]} 16... Qxh4 {[%clk 0:02:47.9]}
17. f3 {[%clk 0:02:26]} 17... Rfc8 {[%clk 0:02:42.2]} 18. Bb1 {[%clk 0:02:19]}
18... Ne7 {[%clk 0:02:32.7]} 19. Ng3 {[%clk 0:01:59.2]} 19... Bb5 {[%clk
0:02:20.6]} 20. Rfe1 {[%clk 0:01:57.8]} 20... Qg5 {[%clk 0:02:15.5]} 21. Qb4
{[%clk 0:01:42.9]} 21... Rxc1 {[%clk 0:02:13.5]} 0-1

[Event "Late-Titled-Tuesday-Blitz-May-07-2024"]
[Site "Chess.com"]
[Date "2024.05.07"]
[Round "3"]
[White "Gareth-Bale11"]
[Black "Meri-Arabidze"]
[Result "1/2-1/2"]
[WhiteElo "2891"]
[BlackElo "2720"]
[TimeControl "180+1"]
[EndTime "14:24:16 PDT"]
[Termination "Game drawn by repetition"]

1. e4 {[%clk 0:03:00.9]} 1... e5 {[%clk 0:03:00.2]} 2. Nf3 {[%clk 0:02:57.8]}
2... Nc6 {[%clk 0:03:00.7]} 3. Bb5 {[%clk 0:02:57.4]} 3... a6 {[%clk 0:03:01]}
4. Ba4 {[%clk 0:02:57.7]} 4... Nf6 {[%clk 0:03:01.4]} 5. d3 {[%clk 0:02:58.2]}
5... d6 {[%clk 0:03:00.8]} 6. c3 {[%clk 0:02:57.4]} 6... g6 {[%clk 0:03:00.5]}
7. O-O {[%clk 0:02:57.9]} 7... Bg7 {[%clk 0:03:00.7]} 8. Re1 {[%clk 0:02:56.3]}
8... O-O {[%clk 0:03:00.8]} 9. Nbd2 {[%clk 0:02:56.1]} 9... Nd7 {[%clk
0:03:00.8]} 10. Bxc6 {[%clk 0:02:36.3]} 10... bxc6 {[%clk 0:03:00.8]} 11. d4
{[%clk 0:02:37.2]} 11... exd4 {[%clk 0:02:49]} 12. cxd4 {[%clk 0:02:35]} 12...
c5 {[%clk 0:02:49.4]} 13. d5 {[%clk 0:02:15.3]} 13... Rb8 {[%clk 0:02:46.6]} 14.
Nc4 {[%clk 0:02:13.3]} 14... Nb6 {[%clk 0:02:40.8]} 15. Na5 {[%clk 0:02:12.8]}
15... Bd7 {[%clk 0:02:38.8]} 16. Rb1 {[%clk 0:02:08.3]} 16... Re8 {[%clk
0:02:31.7]} 17. Bg5 {[%clk 0:02:03.4]} 17... Qc8 {[%clk 0:02:27.4]} 18. Qc2
{[%clk 0:01:52.9]} 18... Na4 {[%clk 0:02:17.6]} 19. Nc4 {[%clk 0:01:45.5]} 19...
Nb6 {[%clk 0:02:12.3]} 20. Na5 {[%clk 0:01:44.8]} 20... Na4 {[%clk 0:02:12.2]}
21. Nc4 {[%clk 0:01:36.3]} 21... Nb6 {[%clk 0:02:12.4]} 22. Na5 {[%clk
0:01:33.4]} 1/2-1/2

[Event "Late-Titled-Tuesday-Blitz-May-07-2024"]
[Site "Chess.com"]
[Date "2024.05.07"]
[Round "3"]
[White "Redzishchess"]
[Black "carokannlover213"]
[Result "0-1"]
[WhiteElo "2502"]
[BlackElo "2724"]
[TimeControl "180+1"]
[EndTime "14:24:50 PDT"]
[Termination "carokannlover213 won by resignation"]

1. Nf3 {[%clk 0:02:52.5]} 1... g6 {[%clk 0:03:00.9]} 2. h4 {[%clk 0:02:50.6]}
2... Bg7 {[%clk 0:03:01.8]} 3. h5 {[%clk 0:02:51]} 3... gxh5 {[%clk 0:03:01.6]}
4. Rxh5 {[%clk 0:02:50.6]} 4... Nf6 {[%clk 0:03:02.1]} 5. Rg5 {[%clk 0:02:48.4]}
5... Bh6 {[%clk 0:03:01.2]} 6. Rg3 {[%clk 0:02:48.8]} 6... Bf4 {[%clk 0:02:59]}
7. Rh3 {[%clk 0:02:47.3]} 7... d5 {[%clk 0:02:59.4]} 8. Rh1 {[%clk 0:02:46.4]}
8... Nc6 {[%clk 0:02:57.1]} 9. d4 {[%clk 0:02:45.3]} 9... Bxc1 {[%clk
0:02:53.9]} 10. Qxc1 {[%clk 0:02:46.2]} 10... Bf5 {[%clk 0:02:53.2]} 11. c3
{[%clk 0:02:37.3]} 11... Qd6 {[%clk 0:02:51.9]} 12. Nbd2 {[%clk 0:02:32.3]}
12... O-O-O {[%clk 0:02:51]} 13. e3 {[%clk 0:02:29.7]} 13... e5 {[%clk
0:02:46.9]} 14. dxe5 {[%clk 0:02:21.4]} 14... Nxe5 {[%clk 0:02:47.8]} 15. Nxe5
{[%clk 0:02:22.2]} 15... Qxe5 {[%clk 0:02:48.7]} 16. Nf3 {[%clk 0:02:23.1]}
16... Qe7 {[%clk 0:02:46.5]} 17. Qd2 {[%clk 0:02:14.4]} 17... Ne4 {[%clk
0:02:45.9]} 18. Qd4 {[%clk 0:02:14.5]} 18... Kb8 {[%clk 0:02:34.4]} 19. Qe5
{[%clk 0:01:43.9]} 19... Qd7 {[%clk 0:02:34.4]} 20. Bb5 {[%clk 0:01:35]} 20...
Qxb5 {[%clk 0:02:30.1]} 21. Qxf5 {[%clk 0:01:34.1]} 21... Qxb2 {[%clk
0:02:29.4]} 0-1

[Event "Late-Titled-Tuesday-Blitz-May-07-2024"]
[Site "Chess.com"]
[Date "2024.05.07"]
[Round "3"]
[White "pouya21"]
[Black "Emp3rador"]
[Result "1-0"]
[WhiteElo "2830"]
[BlackElo "2621"]
[TimeControl "180+1"]
[EndTime "14:24:56 PDT"]
[Termination "pouya21 won on time"]

1. g3 {[%clk 0:03:00.9]} 1... d5 {[%clk 0:02:59.7]} 2. Bg2 {[%clk 0:03:00.6]}
2... Nf6 {[%clk 0:02:59.9]} 3. f4 {[%clk 0:03:00.9]} 3... c5 {[%clk 0:02:58.1]}
4. Nf3 {[%clk 0:03:01]} 4... Nc6 {[%clk 0:02:58.2]} 5. d3 {[%clk 0:03:01.4]}
5... g6 {[%clk 0:02:54.9]} 6. O-O {[%clk 0:03:01.3]} 6... Bg7 {[%clk 0:02:55.2]}
7. c3 {[%clk 0:03:02]} 7... O-O {[%clk 0:02:54.1]} 8. Na3 {[%clk 0:03:02.7]}
8... a6 {[%clk 0:02:50.2]} 9. Qe1 {[%clk 0:02:58.3]} 9... d4 {[%clk 0:02:48.9]}
10. Bd2 {[%clk 0:02:55.5]} 10... Nd5 {[%clk 0:02:45.3]} 11. Nc4 {[%clk
0:02:43.3]} 11... b5 {[%clk 0:02:27.9]} 12. Nce5 {[%clk 0:02:43.8]} 12... Nxe5
{[%clk 0:02:22.3]} 13. fxe5 {[%clk 0:02:44]} 1-0

[Event "Late-Titled-Tuesday-Blitz-May-07-2024"]
[Site "Chess.com"]
[Date "2024.05.07"]
[Round "3"]
[White "nochewycandy"]
[Black "Narek_Ghimoyan"]
[Result "1/2-1/2"]
[WhiteElo "2782"]
[BlackElo "2399"]
[TimeControl "180+1"]
[EndTime "14:25:14 PDT"]
[Termination "Game drawn by repetition"]

1. Nf3 {[%clk 0:03:00.9]} 1... Nf6 {[%clk 0:02:59.6]} 2. g3 {[%clk 0:02:59.8]}
2... d5 {[%clk 0:02:59.1]} 3. Bg2 {[%clk 0:03:00.7]} 3... e6 {[%clk 0:02:57.4]}
4. O-O {[%clk 0:03:01.6]} 4... Be7 {[%clk 0:02:57.5]} 5. c4 {[%clk 0:03:02.2]}
5... O-O {[%clk 0:02:57.2]} 6. b3 {[%clk 0:03:02.7]} 6... Nbd7 {[%clk
0:02:53.3]} 7. Bb2 {[%clk 0:03:02.8]} 7... b6 {[%clk 0:02:53.3]} 8. e3 {[%clk
0:03:03.4]} 8... Bb7 {[%clk 0:02:53.1]} 9. Qe2 {[%clk 0:03:04.1]} 9... c5 {[%clk
0:02:52.9]} 10. Nc3 {[%clk 0:03:03.4]} 10... Rc8 {[%clk 0:02:49.7]} 11. Rfd1
{[%clk 0:03:02.9]} 11... Qc7 {[%clk 0:02:48.6]} 12. Rac1 {[%clk 0:03:02.9]}
12... Qb8 {[%clk 0:02:48.4]} 13. cxd5 {[%clk 0:03:01.6]} 13... Nxd5 {[%clk
0:02:47.5]} 14. Nxd5 {[%clk 0:02:59.7]} 14... Bxd5 {[%clk 0:02:48.4]} 15. d4
{[%clk 0:02:56.7]} 15... cxd4 {[%clk 0:02:48.1]} 16. Nxd4 {[%clk 0:02:51.7]}
16... Bxg2 {[%clk 0:02:45.5]} 17. Kxg2 {[%clk 0:02:52.6]} 17... Bf6 {[%clk
0:02:44.5]} 18. Nf3 {[%clk 0:02:26.4]} 18... Rxc1 {[%clk 0:02:41.4]} 19. Rxc1
{[%clk 0:02:23.3]} 19... Rc8 {[%clk 0:02:38.5]} 20. Rd1 {[%clk 0:02:19.9]} 20...
Bxb2 {[%clk 0:02:34.6]} 21. Qxb2 {[%clk 0:02:20.8]} 21... Nf6 {[%clk 0:02:34.8]}
22. Qd4 {[%clk 0:02:15.8]} 22... h6 {[%clk 0:02:33.5]} 23. h3 {[%clk 0:02:14.5]}
23... Qb7 {[%clk 0:02:33.3]} 24. g4 {[%clk 0:02:09.3]} 24... Rc2 {[%clk
0:02:32.1]} 25. Qd8+ {[%clk 0:02:07.9]} 25... Kh7 {[%clk 0:02:31.6]} 26. Rd2
{[%clk 0:01:50.6]} 26... Rxd2 {[%clk 0:02:25.1]} 27. Qxd2 {[%clk 0:01:51.5]}
27... Ne4 {[%clk 0:02:23.7]} 28. Qd3 {[%clk 0:01:47.8]} 28... g6 {[%clk
0:02:23]} 29. Kg1 {[%clk 0:01:43.5]} 29... Nc3 {[%clk 0:02:04.4]} 30. Qxc3
{[%clk 0:01:40.6]} 30... Qxf3 {[%clk 0:02:03.6]} 31. Qc7 {[%clk 0:01:39.9]}
31... Kg7 {[%clk 0:01:59.1]} 32. Qxa7 {[%clk 0:01:28.3]} 32... Qxh3 {[%clk
0:01:58.1]} 33. Qxb6 {[%clk 0:01:29]} 33... Qxg4+ {[%clk 0:01:58.1]} 34. Kf1
{[%clk 0:01:28.8]} 34... Qd1+ {[%clk 0:01:58.4]} 35. Kg2 {[%clk 0:01:29.3]}
35... Qg4+ {[%clk 0:01:58.8]} 36. Kh2 {[%clk 0:01:29.4]} 36... Qh4+ {[%clk
0:01:57.3]} 37. Kg2 {[%clk 0:01:29.6]} 37... Qg4+ {[%clk 0:01:57.8]} 38. Kf1
{[%clk 0:01:28]} 38... Qd1+ {[%clk 0:01:56.1]} 39. Kg2 {[%clk 0:01:28.4]} 39...
Qg4+ {[%clk 0:01:56.8]} 1/2-1/2

[Event "Late-Titled-Tuesday-Blitz-May-07-2024"]
[Site "Chess.com"]
[Date "2024.05.07"]
[Round "3"]
[White "Kostukov_Alex"]
[Black "maurovargas01"]
[Result "1-0"]
[WhiteElo "2374"]
[BlackElo "1969"]
[TimeControl "180+1"]
[EndTime "14:25:34 PDT"]
[Termination "Kostukov_Alex won on time"]

1. c4 {[%clk 0:03:00.8]} 1... e5 {[%clk 0:00:29.1]} 2. g3 {[%clk 0:02:58.6]}
2... Nc6 {[%clk 0:00:30]} 3. Bg2 {[%clk 0:02:59.2]} 3... Nf6 {[%clk 0:00:30.3]}
4. e3 {[%clk 0:02:59.6]} 4... g6 {[%clk 0:00:29.1]} 5. Nc3 {[%clk 0:02:59.5]}
5... Bg7 {[%clk 0:00:29.3]} 6. Nge2 {[%clk 0:02:59.6]} 6... O-O {[%clk
0:00:29.6]} 7. O-O {[%clk 0:02:59.3]} 7... d6 {[%clk 0:00:29.7]} 8. d4 {[%clk
0:02:58.9]} 8... exd4 {[%clk 0:00:28.5]} 9. exd4 {[%clk 0:02:59.8]} 9... Re8
{[%clk 0:00:28.4]} 10. h3 {[%clk 0:02:30.7]} 10... Bd7 {[%clk 0:00:24.5]} 11.
Be3 {[%clk 0:02:28.3]} 11... Ne7 {[%clk 0:00:18.1]} 12. d5 {[%clk 0:02:06.3]}
1-0

[Event "Late-Titled-Tuesday-Blitz-May-07-2024"]
[Site "Chess.com"]
[Date "2024.05.07"]
[Round "3"]
[White "trriinu"]
[Black "merinasian"]
[Result "1-0"]
[WhiteElo "2256"]
[BlackElo "2478"]
[TimeControl "180+1"]
[EndTime "14:25:41 PDT"]
[Termination "trriinu won by resignation"]

1. e4 {[%clk 0:02:57.6]} 1... d6 {[%clk 0:02:57.9]} 2. d4 {[%clk 0:02:57.3]}
2... Nd7 {[%clk 0:02:58.5]} 3. Nc3 {[%clk 0:02:57.9]} 3... g6 {[%clk 0:02:59]}
4. Nf3 {[%clk 0:02:58.4]} 4... Bg7 {[%clk 0:02:59.5]} 5. Be2 {[%clk 0:02:59.1]}
5... a6 {[%clk 0:02:59.2]} 6. a4 {[%clk 0:02:56.7]} 6... e6 {[%clk 0:02:59.5]}
7. O-O {[%clk 0:02:57.1]} 7... Ne7 {[%clk 0:02:59.9]} 8. Be3 {[%clk 0:02:57.3]}
8... b6 {[%clk 0:03:00]} 9. Qd2 {[%clk 0:02:57.5]} 9... h6 {[%clk 0:02:59.9]}
10. Rad1 {[%clk 0:02:55.2]} 10... Bb7 {[%clk 0:03:00]} 11. Rfe1 {[%clk
0:02:51.6]} 11... Nf6 {[%clk 0:02:57.4]} 12. Bd3 {[%clk 0:02:41]} 12... Ng4
{[%clk 0:02:56.9]} 13. Bf4 {[%clk 0:02:37.2]} 13... g5 {[%clk 0:02:56.7]} 14.
Bg3 {[%clk 0:02:37.2]} 14... Ng6 {[%clk 0:02:56.7]} 15. h3 {[%clk 0:02:32.8]}
15... Nf6 {[%clk 0:02:56.7]} 16. e5 {[%clk 0:02:30.9]} 16... Bxf3 {[%clk
0:02:55.6]} 17. gxf3 {[%clk 0:02:27.9]} 17... dxe5 {[%clk 0:02:46.7]} 18. Bxg6
{[%clk 0:02:18.5]} 18... fxg6 {[%clk 0:02:46.4]} 19. Rxe5 {[%clk 0:02:15.2]}
19... O-O {[%clk 0:02:46.4]} 20. Rxe6 {[%clk 0:02:11.8]} 20... Nh5 {[%clk
0:02:44.6]} 21. Rxg6 {[%clk 0:02:08.1]} 21... Nxg3 {[%clk 0:02:42.1]} 22. fxg3
{[%clk 0:02:05.7]} 22... Rxf3 {[%clk 0:02:42.7]} 23. Kg2 {[%clk 0:02:02.5]}
23... Qf8 {[%clk 0:02:37.2]} 24. Qe2 {[%clk 0:01:37.2]} 24... Rf7 {[%clk
0:02:22.7]} 25. Re1 {[%clk 0:01:31.8]} 25... Kh7 {[%clk 0:02:17.9]} 26. Qe4
{[%clk 0:01:26.7]} 26... Rf2+ {[%clk 0:02:15.6]} 27. Kg1 {[%clk 0:01:26.5]}
27... Re8 {[%clk 0:01:44.1]} 28. Re6+ {[%clk 0:01:08.7]} 1-0